[Event "Championnat du monde jeunes U12F"]
[Date "2024.11.19"]
[White "Hrckova, Anna"]
[Black "Saharkar, Sharvari"]
[WhiteElo "1441"]
[BlackElo "1581"]
[Round "5.40"]
[Result "0-1"]
[TimeControl "5400+30"]

1. e4 {[%clk 1:30:58]} 1... e5 {[%clk 1:30:55]} 2. Nf3 {[%clk 1:31:24]} 2... Nc6
{[%clk 1:30:46]} 3. Bb5 {[%clk 1:31:41]} 3... a6 {[%clk 1:29:59]} 4. Ba4 {[%clk
1:31:45]} 4... d6 {[%clk 1:29:21]} 5. O-O {[%clk 1:17:47]} 5... Bd7 {[%clk
1:22:27]} 6. c3 {[%clk 1:15:33]} 6... Nf6 {[%clk 1:18:56]} 7. Re1 {[%clk
1:15:45]} 7... g6 {[%clk 1:14:53]} 8. h3 {[%clk 1:14:33]} 8... Bg7 {[%clk
1:13:23]} 9. d4 {[%clk 1:14:19]} 9... O-O {[%clk 1:12:06]} 10. Bxc6 {[%clk
1:09:03]} 10... Bxc6 {[%clk 1:11:49]} 11. d5 {[%clk 1:09:18]} 11... Bd7 {[%clk
1:11:42]} 12. Bg5 {[%clk 1:08:24]} 12... h6 {[%clk 1:10:11]} 13. Bh4 {[%clk
1:02:33]} 13... c6 {[%clk 1:09:18]} 14. c4 {[%clk 1:02:50]} 14... cxd5 {[%clk
1:07:25]} 15. cxd5 {[%clk 1:01:56]} 15... Rc8 {[%clk 1:05:47]} 16. Nc3 {[%clk
1:01:53]} 16... Qb6 {[%clk 1:03:09]} 17. Qd2 {[%clk 0:56:04]} 17... Kh7 {[%clk
1:00:11]} 18. Rab1 {[%clk 0:45:59]} 18... Nh5 {[%clk 0:56:55]} 19. Qe3 {[%clk
0:38:18]} 19... Rc5 {[%clk 0:47:21]} 20. b4 {[%clk 0:37:45]} 20... Rb5 {[%clk
0:45:38]} 21. Nxb5 Qxb5 {[%clk 0:45:48]} 22. Be7 {[%clk 0:37:15]} 22... Re8
{[%clk 0:41:16]} 23. Bxd6 {[%clk 0:36:47]} 23... f5 {[%clk 0:38:21]} 24. Qc5
{[%clk 0:33:23]} 24... fxe4 {[%clk 0:34:07]} 25. Qxb5 {[%clk 0:33:34]} 25...
axb5 {[%clk 0:34:05]} 26. Nd2 {[%clk 0:33:48]} 26... Nf4 {[%clk 0:29:44]} 27.
Nxe4 {[%clk 0:31:15]} 27... Nxd5 {[%clk 0:26:12]} 28. Rbd1 {[%clk 0:29:51]}
28... Bc6 {[%clk 0:24:35]} 29. g3 {[%clk 0:21:40]} 29... Ra8 {[%clk 0:18:46]}
30. Rd2 {[%clk 0:19:50]} 30... Nb6 {[%clk 0:17:13]} 31. Rc2 {[%clk 0:14:08]}
31... Nc4 {[%clk 0:15:24]} 32. Be7 {[%clk 0:12:22]} 32... Re8 {[%clk 0:14:04]}
33. Nf6+ {[%clk 0:11:14]} 33... Bxf6 {[%clk 0:13:39]} 34. Bxf6 {[%clk 0:11:39]}
34... Re6 {[%clk 0:12:06]} 35. Bd8 {[%clk 0:11:37]} 35... Rd6 {[%clk 0:11:24]}
36. Bc7 {[%clk 0:11:50]} 36... Rd7 {[%clk 0:10:16]} 37. Bxe5 {[%clk 0:12:05]}
37... Nd2 {[%clk 0:09:49]} 38. Re3 {[%clk 0:02:20]} 38... Nc4 {[%clk 0:09:08]}
39. Re1 {[%clk 0:02:06]} 39... Nxe5 {[%clk 0:09:29]} 40. Rb1 {[%clk 0:01:05]}
40... Nf3+ {[%clk 0:09:10]} 41. Kf1 {[%clk 0:01:18]} 41... Nd2+ {[%clk 0:09:30]}
42. Rxd2 {[%clk 0:01:25]} 42... Rxd2 {[%clk 0:09:44]} 43. a3 {[%clk 0:01:40]}
43... Ra2 {[%clk 0:09:13]} 44. Rb3 {[%clk 0:01:43]} 44... Bd5 {[%clk 0:09:15]}
45. Rc3 {[%clk 0:01:56]} 45... Bc4+ {[%clk 0:08:49]} 46. Kg1 {[%clk 0:01:28]}
46... Kg7 {[%clk 0:08:23]} 47. Re3 {[%clk 0:01:30]} 47... Bd5 {[%clk 0:08:21]}
48. Kf1 {[%clk 0:01:38]} 48... Kf6 {[%clk 0:07:49]} 49. g4 {[%clk 0:01:13]}
49... Rb2 {[%clk 0:06:29]} 50. h4 {[%clk 0:01:14]} 50... h5 {[%clk 0:06:03]} 51.
g5+ {[%clk 0:00:59]} 51... Kf5 {[%clk 0:06:18]} 52. Re7 {[%clk 0:01:07]} 52...
Rb1+ {[%clk 0:05:41]} 53. Ke2 {[%clk 0:01:24]} 53... Bc4+ {[%clk 0:05:59]} 54.
Kd2 {[%clk 0:01:23]} 54... Rb2+ {[%clk 0:05:52]} 55. Ke1 {[%clk 0:01:00]} 55...
Rb3 {[%clk 0:05:45]} 56. Rxb7 {[%clk 0:01:19]} 56... Rxa3 {[%clk 0:06:01]} 57.
Rb8 {[%clk 0:01:13]} 57... Kg4 {[%clk 0:06:01]} 58. Rb6 {[%clk 0:01:18]} 58...
Bd3 {[%clk 0:05:45]} 59. Rf6 {[%clk 0:01:11]} 59... Kxh4 {[%clk 0:05:50]} 60.
Rf3 {[%clk 0:01:23]} 60... Rb3 {[%clk 0:05:48]} 61. Rf4+ {[%clk 0:01:18]} 61...
Kxg5 {[%clk 0:06:05]} 62. Rd4 {[%clk 0:01:32]} 62... h4 {[%clk 0:05:56]} 63. f4+
{[%clk 0:01:43]} 63... Kf5 {[%clk 0:06:01]} 64. Kf2 {[%clk 0:01:58]} 64... Be4
{[%clk 0:05:20]} 65. Rd8 {[%clk 0:01:59]} 65... Kxf4 {[%clk 0:04:44]} 66. Rf8+
{[%clk 0:02:19]} 66... Kg4 {[%clk 0:05:03]} 67. Kg1 {[%clk 0:02:18]} 67... Rg3+
{[%clk 0:05:11]} 68. Kf2 {[%clk 0:01:34]} 68... Rf3+ {[%clk 0:05:29]} 69. Rxf3
{[%clk 0:01:57]} 69... Bxf3 {[%clk 0:05:54]} 70. Kf1 {[%clk 0:02:04]} 70... h3
{[%clk 0:06:12]} 71. Kg1 {[%clk 0:02:11]} 71... Kg3 {[%clk 0:06:27]} 72. Kf1
{[%clk 0:02:34]} 72... h2 {[%clk 0:06:47]} 73. Ke1 {[%clk 0:03:00]} 73... h1=Q+
{[%clk 0:06:59]} 74. Kd2 {[%clk 0:03:23]} 74... Qd1+ {[%clk 0:06:52]} 75. Kc3
{[%clk 0:03:37]} 75... Bd5 {[%clk 0:06:38]} 76. Kb2 {[%clk 0:03:51]} 76... Bb3
{[%clk 0:06:10]} 77. Kc3 {[%clk 0:04:05]} 77... g5 {[%clk 0:06:25]} 78. Kb2
{[%clk 0:04:06]} 78... Qc2+ {[%clk 0:06:49]} 79. Ka3 {[%clk 0:04:19]} 79... Qa2#
{[%clk 0:07:11]} 0-1

[Variant "Standard"]
[Site "Europe Echecs"]

[Event "Championnat du monde jeunes U12F"]
[Date "2024.11.20"]
[White "Amanzhol, Khanzada"]
[Black "Buyankhishig, Batpelden"]
[WhiteElo "1780"]
[BlackElo "1867"]
[Round "6.1"]
[Result "1/2-1/2"]
[TimeControl "5400+30"]

1. e4 {[%clk 1:30:47]} 1... e5 {[%clk 1:26:51]} 2. Nf3 {[%clk 1:30:47]} 2... Nc6
{[%clk 1:26:48]} 3. d4 {[%clk 1:31:08]} 3... exd4 {[%clk 1:27:09]} 4. Nxd4
{[%clk 1:31:32]} 4... Nf6 {[%clk 1:27:23]} 5. Nc3 {[%clk 1:31:30]} 5... Bb4
{[%clk 1:27:17]} 6. Nxc6 {[%clk 1:31:43]} 6... bxc6 {[%clk 1:27:23]} 7. Bd3
{[%clk 1:32:09]} 7... d5 {[%clk 1:27:05]} 8. exd5 {[%clk 1:32:33]} 8... cxd5
{[%clk 1:27:21]} 9. O-O {[%clk 1:32:58]} 9... O-O {[%clk 1:27:34]} 10. h3 {[%clk
1:33:24]} 10... Be6 {[%clk 1:22:54]} 11. Qf3 {[%clk 1:32:38]} 11... Rb8 {[%clk
1:18:01]} 12. Bf4 {[%clk 1:30:24]} 12... Bd6 {[%clk 1:13:51]} 13. b3 {[%clk
1:27:34]} 13... c5 {[%clk 1:11:29]} 14. Rad1 {[%clk 1:22:04]} 14... Bxf4 {[%clk
1:07:47]} 15. Qxf4 {[%clk 1:22:08]} 15... Qa5 {[%clk 1:08:00]} 16. Ne2 {[%clk
1:14:09]} 16... Rb4 {[%clk 0:58:16]} 17. Qe5 {[%clk 1:07:50]} 17... Re8 {[%clk
0:53:22]} 18. Qg5 {[%clk 0:50:21]} 18... h6 {[%clk 0:47:43]} 19. Qd2 {[%clk
0:49:48]} 19... Qxa2 {[%clk 0:44:24]} 20. Ra1 {[%clk 0:47:33]} 20... Qb2 {[%clk
0:44:48]} 21. Nc3 {[%clk 0:45:19]} 21... Rxb3 {[%clk 0:36:40]} 22. Na4 {[%clk
0:44:12]} 22... Rxd3 {[%clk 0:36:44]} 23. Qxd3 {[%clk 0:44:27]} 23... Qd4 {[%clk
0:33:25]} 24. Qxd4 {[%clk 0:43:06]} 24... cxd4 {[%clk 0:33:48]} 25. Rfd1 {[%clk
0:42:21]} 25... Rc8 {[%clk 0:32:40]} 26. Rac1 {[%clk 0:35:40]} 26... Rc4 {[%clk
0:28:42]} 27. Nb2 {[%clk 0:35:57]} 27... Rb4 {[%clk 0:28:54]} 28. Nd3 {[%clk
0:36:16]} 28... Ra4 {[%clk 0:27:22]} 29. Ra1 {[%clk 0:33:15]} 29... Rc4 {[%clk
0:25:22]} 30. Rxa7 {[%clk 0:29:40]} 30... Rxc2 {[%clk 0:25:36]} 31. f3 {[%clk
0:29:03]} 31... Nh5 {[%clk 0:20:48]} 32. Ra4 {[%clk 0:25:31]} 32... Ng3 {[%clk
0:17:11]} 33. Kh2 {[%clk 0:23:08]} 33... Ne2 {[%clk 0:14:19]} 34. Ne1 {[%clk
0:22:31]} 34... Rb2 {[%clk 0:13:55]} 35. Nd3 {[%clk 0:21:39]} 35... Rc2 {[%clk
0:14:08]} 36. Ne1 {[%clk 0:21:19]} 36... Rb2 {[%clk 0:14:11]} 37. Nd3 {[%clk
0:20:52]} 37... Rc2 {[%clk 0:12:37]} 38. Ne1 {[%clk 0:19:56]} 38... Rb2 {[%clk
0:11:20]} 39. Nd3 {[%clk 0:20:17]} 39... Rc2 {[%clk 0:11:43]} 40. Ne1 {[%clk
0:20:42]} 1/2-1/2

[Variant "Standard"]
[Site "Europe Echecs"]

[Event "Championnat du monde jeunes U12F"]
[Date "2024.11.20"]
[White "Qiu, Laurie"]
[Black "Mozolevskaya, Tatyana Nik"]
[WhiteElo "1994"]
[BlackElo "1775"]
[Round "6.2"]
[Result "0-1"]
[TimeControl "5400+30"]

1. d4 {[%clk 1:30:58]} 1... d5 {[%clk 1:30:49]} 2. c4 {[%clk 1:31:17]} 2... e6
{[%clk 1:30:53]} 3. Nc3 {[%clk 1:30:56]} 3... Nf6 {[%clk 1:31:13]} 4. Bg5 {[%clk
1:29:13]} 4... Nbd7 {[%clk 1:30:54]} 5. Nf3 {[%clk 1:26:25]} 5... c6 {[%clk
1:30:23]} 6. e3 {[%clk 1:25:55]} 6... Qa5 {[%clk 1:26:20]} 7. Qc2 {[%clk
1:14:44]} 7... Ne4 {[%clk 1:20:39]} 8. Bf4 {[%clk 1:09:46]} 8... Bb4 {[%clk
1:17:57]} 9. Rc1 {[%clk 1:08:14]} 9... Qxa2 {[%clk 1:10:56]} 10. Bd3 {[%clk
1:06:55]} 10... Ndf6 {[%clk 1:06:46]} 11. O-O {[%clk 1:01:44]} 11... Bxc3 {[%clk
1:06:12]} 12. bxc3 {[%clk 1:02:04]} 12... Qxc2 {[%clk 1:06:30]} 13. Rxc2 {[%clk
1:02:28]} 13... O-O {[%clk 1:00:15]} 14. cxd5 {[%clk 0:55:25]} 14... exd5 {[%clk
0:58:02]} 15. c4 {[%clk 0:55:21]} 15... dxc4 {[%clk 0:50:14]} 16. Rxc4 {[%clk
0:55:41]} 16... Be6 {[%clk 0:49:54]} 17. Rb4 {[%clk 0:55:22]} 17... b6 {[%clk
0:49:24]} 18. Ne5 {[%clk 0:47:41]} 18... c5 {[%clk 0:47:58]} 19. Rb2 {[%clk
0:39:42]} 19... cxd4 {[%clk 0:45:50]} 20. exd4 {[%clk 0:39:09]} 20... Nc3 {[%clk
0:43:21]} 21. Ba6 {[%clk 0:32:35]} 21... Bc8 {[%clk 0:40:55]} 22. Ra1 {[%clk
0:27:27]} 22... Ncd5 {[%clk 0:38:32]} 23. Bg3 {[%clk 0:26:34]} 23... Ne4 {[%clk
0:35:06]} 24. Bh4 {[%clk 0:22:23]} 24... Bxa6 {[%clk 0:31:51]} 25. Rxa6 {[%clk
0:22:45]} 25... Rfc8 {[%clk 0:32:06]} 26. h3 {[%clk 0:22:00]} 26... f6 {[%clk
0:31:24]} 27. Nd3 {[%clk 0:19:29]} 27... g5 {[%clk 0:24:20]} 28. f3 {[%clk
0:18:29]} 28... Nd6 {[%clk 0:24:36]} 29. Bf2 {[%clk 0:15:39]} 29... Rc3 {[%clk
0:20:58]} 30. Nb4 {[%clk 0:15:14]} 30... Nc4 {[%clk 0:20:26]} 31. Rb1 {[%clk
0:14:44]} 31... Nxb4 {[%clk 0:15:11]} 32. Rxb4 {[%clk 0:15:05]} 32... Re8 {[%clk
0:13:40]} 33. Ra2 {[%clk 0:11:40]} 33... a5 {[%clk 0:12:04]} 34. Rb5 {[%clk
0:11:12]} 34... Rd3 {[%clk 0:12:04]} 35. d5 {[%clk 0:10:05]} 35... Rd1+ {[%clk
0:10:02]} 36. Kh2 {[%clk 0:10:28]} 36... Nd2 {[%clk 0:09:46]} 37. Bxb6 {[%clk
0:07:19]} 37... Re2 {[%clk 0:07:47]} 38. Rbb2 {[%clk 0:06:48]} 38... h5 {[%clk
0:06:05]} 39. h4 {[%clk 0:01:04]} 39... Nf1+ {[%clk 0:03:38]} 40. Kg1 {[%clk
0:00:35]} 40... Ng3+ {[%clk 0:02:32]} 41. Kh2 {[%clk 0:00:59]} 41... gxh4 {[%clk
0:02:50]} 42. Bg1 {[%clk 0:01:18]} 42... Ree1 {[%clk 0:03:00]} 43. Kh3 {[%clk
0:01:15]} 43... Rxg1 {[%clk 0:03:08]} 44. Kxh4 {[%clk 0:01:37]} 44... Nf5+
{[%clk 0:03:07]} 45. Kxh5 {[%clk 0:02:01]} 45... Rxd5 {[%clk 0:01:43]} 46. Kg6
{[%clk 0:02:19]} 46... Nh4+ {[%clk 0:02:04]} 47. Kxf6 {[%clk 0:02:03]} 47... Re1
{[%clk 0:01:07]} 48. Re2 {[%clk 0:00:39]} 48... Rf5+ {[%clk 0:01:22]} 49. Ke6
{[%clk 0:00:57]} 49... Rxe2+ {[%clk 0:01:30]} 50. Rxe2 {[%clk 0:01:19]} 50...
Kg7 {[%clk 0:00:45]} 51. Rf2 {[%clk 0:00:33]} 51... a4 {[%clk 0:00:39]} 52. f4
{[%clk 0:00:38]} 52... Ra5 {[%clk 0:00:49]} 53. g4 {[%clk 0:00:43]} 53... a3
{[%clk 0:01:05]} 54. Ra2 {[%clk 0:00:55]} 54... Nf3 {[%clk 0:00:43]} 55. f5
{[%clk 0:00:56]} 55... Nd4+ {[%clk 0:00:41]} 56. Ke7 {[%clk 0:01:14]} 56... Nc6+
{[%clk 0:01:06]} 57. Ke6 {[%clk 0:01:18]} 57... Nb4 {[%clk 0:01:01]} 58. f6+
{[%clk 0:01:11]} 58... Kg6 {[%clk 0:00:52]} 59. Ra1 {[%clk 0:00:34]} 59... a2
{[%clk 0:01:13]} 60. f7 {[%clk 0:00:33]} 60... Ra6+ {[%clk 0:01:37]} 61. Ke7
{[%clk 0:00:32]} 61... Ra7+ {[%clk 0:01:58]} 62. Ke6 {[%clk 0:00:33]} 62... Rxf7
{[%clk 0:02:13]} 0-1

[Variant "Standard"]
[Site "Europe Echecs"]

[Event "Championnat du monde jeunes U12F"]
[Date "2024.11.20"]
[White "Tu, Audrey"]
[Black "Venskaya, Nika"]
[WhiteElo "1765"]
[BlackElo "1871"]
[Round "6.3"]
[Result "0-1"]
[TimeControl "5400+30"]

1. e4 {[%clk 1:30:59]} 1... d6 {[%clk 1:30:19]} 2. d4 {[%clk 1:31:20]} 2... Nf6
{[%clk 1:28:46]} 3. Nc3 {[%clk 1:31:35]} 3... g6 {[%clk 1:28:54]} 4. Bg5 {[%clk
1:31:38]} 4... Bg7 {[%clk 1:24:26]} 5. f4 {[%clk 1:30:41]} 5... c6 {[%clk
1:21:54]} 6. Nf3 {[%clk 1:29:22]} 6... Qa5 {[%clk 1:10:38]} 7. Bd3 {[%clk
1:25:14]} 7... Bg4 {[%clk 1:02:23]} 8. O-O {[%clk 1:03:18]} 8... e5 {[%clk
0:48:33]} 9. fxe5 {[%clk 0:58:31]} 9... dxe5 {[%clk 0:46:54]} 10. dxe5 {[%clk
0:52:53]} 10... Nfd7 {[%clk 0:46:18]} 11. Qe1 {[%clk 0:42:52]} 11... Qc7 {[%clk
0:21:16]} 12. Qg3 {[%clk 0:34:31]} 12... Bxf3 {[%clk 0:20:07]} 13. Qxf3 {[%clk
0:33:39]} 13... Nxe5 {[%clk 0:20:07]} 14. Qg3 {[%clk 0:27:26]} 14... O-O {[%clk
0:18:41]} 15. Be3 {[%clk 0:20:52]} 15... Qe7 {[%clk 0:16:05]} 16. a3 {[%clk
0:18:11]} 16... Nbd7 {[%clk 0:15:55]} 17. Rad1 {[%clk 0:17:46]} 17... Qe6 {[%clk
0:14:55]} 18. Be2 {[%clk 0:16:17]} 18... Nb6 {[%clk 0:12:35]} 19. b3 {[%clk
0:14:15]} 19... Qe7 {[%clk 0:10:22]} 20. b4 {[%clk 0:13:28]} 20... Qe6 {[%clk
0:10:03]} 21. Bc5 {[%clk 0:13:02]} 21... Rfd8 {[%clk 0:09:38]} 22. b5 {[%clk
0:09:54]} 22... Qe8 {[%clk 0:03:45]} 23. Qf2 {[%clk 0:07:13]} 23... Nbc4 {[%clk
0:02:38]} 24. bxc6 {[%clk 0:05:06]} 24... bxc6 25. Bxa7 {[%clk 0:03:35]} 25...
Nxa3 {[%clk 0:02:48]} 26. Bb6 {[%clk 0:03:03]} 26... Rxd1 {[%clk 0:02:35]} 27.
Bxd1 {[%clk 0:03:03]} 27... Nac4 {[%clk 0:02:33]} 28. Bd4 {[%clk 0:02:55]} 28...
Rd8 {[%clk 0:02:38]} 29. Bxe5 {[%clk 0:02:38]} 29... Bxe5 {[%clk 0:02:52]} 30.
Ne2 {[%clk 0:02:34]} 30... Nd2 {[%clk 0:02:34]} 31. Re1 {[%clk 0:02:37]} 31...
Nxe4 {[%clk 0:02:34]} 32. Qf3 {[%clk 0:02:37]} 32... Nd2 {[%clk 0:01:56]} 33.
Qg4 {[%clk 0:02:10]} 33... Bd4+ {[%clk 0:01:47]} 34. Kh1 {[%clk 0:02:19]} 34...
Bf2 {[%clk 0:02:09]} 35. h3 {[%clk 0:01:15]} 35... Bxe1 {[%clk 0:02:06]} 36. Nf4
{[%clk 0:01:10]} 36... Ne4 {[%clk 0:02:17]} 37. Kh2 {[%clk 0:00:44]} 37... Bg3+
{[%clk 0:02:42]} 38. Kg1 {[%clk 0:01:03]} 38... Bxf4 {[%clk 0:02:45]} 39. Qxf4
{[%clk 0:00:50]} 39... Rxd1+ {[%clk 0:03:08]} 40. Kh2 {[%clk 0:01:15]} 40... f6
{[%clk 0:02:42]} 0-1

[Variant "Standard"]
[Site "Europe Echecs"]

[Event "Championnat du monde jeunes U12F"]
[Date "2024.11.20"]
[White "Xue, Tianhao"]
[Black "Sinkar, Anagha Aniket"]
[WhiteElo "1835"]
[BlackElo "1723"]
[Round "6.4"]
[Result "1-0"]
[TimeControl "5400+30"]

1. e4 {[%clk 1:30:58]} 1... c5 {[%clk 1:30:27]} 2. Nf3 {[%clk 1:31:22]} 2... Nc6
{[%clk 1:30:19]} 3. d4 {[%clk 1:31:44]} 3... cxd4 {[%clk 1:30:06]} 4. Nxd4
{[%clk 1:32:09]} 4... g6 {[%clk 1:29:56]} 5. c4 {[%clk 1:32:09]} 5... Bg7 {[%clk
1:29:27]} 6. Be3 {[%clk 1:32:31]} 6... Nf6 {[%clk 1:28:10]} 7. Nc3 {[%clk
1:31:44]} 7... d6 {[%clk 1:25:43]} 8. Be2 {[%clk 1:29:15]} 8... Bd7 {[%clk
1:23:13]} 9. O-O {[%clk 1:28:14]} 9... O-O {[%clk 1:22:32]} 10. Qd2 {[%clk
1:24:25]} 10... Rc8 {[%clk 1:19:55]} 11. f3 {[%clk 1:23:16]} 11... a6 {[%clk
1:14:10]} 12. Rac1 {[%clk 1:20:25]} 12... Rb8 {[%clk 1:07:30]} 13. Nd5 {[%clk
1:11:28]} 13... e6 {[%clk 1:02:31]} 14. Nc3 {[%clk 1:08:34]} 14... Nxd4 {[%clk
0:59:23]} 15. Bxd4 {[%clk 1:08:57]} 15... Bc6 {[%clk 0:58:14]} 16. Rfd1 {[%clk
1:07:43]} 16... Qc7 {[%clk 0:55:17]} 17. Qe3 {[%clk 1:00:26]} 17... b6 {[%clk
0:52:30]} 18. e5 {[%clk 0:54:30]} 18... dxe5 {[%clk 0:50:27]} 19. Bxe5 {[%clk
0:53:39]} 19... Ng4 {[%clk 0:48:41]} 20. Bxc7 {[%clk 0:53:48]} 20... Nxe3 {[%clk
0:48:59]} 21. Rd6 {[%clk 0:53:45]} 21... Rbc8 {[%clk 0:47:07]} 22. Rxc6 {[%clk
0:53:19]} 22... Be5 {[%clk 0:44:51]} 23. Bxb6 {[%clk 0:50:43]} 23... Rxc6 {[%clk
0:43:29]} 24. Bxe3 {[%clk 0:51:07]} 24... Rd8 {[%clk 0:43:17]} 25. Kf2 {[%clk
0:49:23]} 25... Kg7 {[%clk 0:40:35]} 26. f4 {[%clk 0:48:41]} 26... Bd4 {[%clk
0:39:01]} 27. Bxd4+ {[%clk 0:48:57]} 27... Rxd4 {[%clk 0:39:23]} 28. Ke3 {[%clk
0:49:24]} 28... Rd7 {[%clk 0:39:06]} 29. b4 {[%clk 0:49:23]} 29... e5 {[%clk
0:35:04]} 30. fxe5 {[%clk 0:47:45]} 30... Re6 {[%clk 0:34:41]} 31. Nd5 {[%clk
0:43:49]} 31... Rxe5+ {[%clk 0:34:15]} 32. Kd3 {[%clk 0:44:10]} 32... Re8 {[%clk
0:33:24]} 33. Bf3 {[%clk 0:44:14]} 33... Rb8 {[%clk 0:32:25]} 34. a3 {[%clk
0:44:26]} 34... f5 {[%clk 0:31:25]} 35. c5 {[%clk 0:43:23]} 35... g5 {[%clk
0:31:20]} 36. g3 {[%clk 0:42:20]} 36... Re8 {[%clk 0:29:26]} 37. c6 {[%clk
0:41:55]} 37... Rd6 {[%clk 0:28:50]} 38. c7 {[%clk 0:40:52]} 38... Rc8 {[%clk
0:29:10]} 39. Kd4 {[%clk 0:40:44]} 39... g4 {[%clk 0:28:29]} 40. Bg2 {[%clk
0:37:20]} 40... Re6 {[%clk 0:27:12]} 41. a4 {[%clk 0:37:20]} 41... Kf7 {[%clk
0:24:22]} 42. b5 {[%clk 0:37:28]} 42... axb5 {[%clk 0:22:40]} 43. axb5 {[%clk
0:37:50]} 43... Re2 {[%clk 0:22:21]} 44. b6 {[%clk 0:36:36]} 44... Rb2 {[%clk
0:22:32]} 45. Kc5 {[%clk 0:36:36]} 45... Rxg2 {[%clk 0:21:56]} 46. b7 {[%clk
0:37:01]} 46... Rxc7+ {[%clk 0:22:19]} 47. Nxc7 {[%clk 0:37:27]} 47... Rb2
{[%clk 0:22:43]} 48. Nb5 {[%clk 0:37:54]} 1-0

[Variant "Standard"]
[Site "Europe Echecs"]

[Event "Championnat du monde jeunes U12F"]
[Date "2024.11.20"]
[White "Allahverdi, Zahra"]
[Black "Zavivaeva, Kristina"]
[WhiteElo "1718"]
[BlackElo "1775"]
[Round "6.5"]
[Result "1-0"]
[TimeControl "5400+30"]

1. d4 {[%clk 1:30:58]} 1... Nf6 {[%clk 1:30:55]} 2. c4 {[%clk 1:31:22]} 2... c5
{[%clk 1:31:17]} 3. d5 {[%clk 1:31:42]} 3... b5 {[%clk 1:31:42]} 4. cxb5 {[%clk
1:31:56]} 4... a6 {[%clk 1:32:06]} 5. Nc3 {[%clk 1:32:16]} 5... g6 {[%clk
1:31:58]} 6. e4 {[%clk 1:32:31]} 6... d6 {[%clk 1:31:23]} 7. Nf3 {[%clk
1:31:40]} 7... Bg7 {[%clk 1:31:43]} 8. a4 {[%clk 1:30:32]} 8... axb5 {[%clk
1:31:07]} 9. Bxb5+ {[%clk 1:29:42]} 9... Bd7 {[%clk 1:31:02]} 10. Bxd7+ {[%clk
1:24:57]} 10... Nbxd7 {[%clk 1:31:10]} 11. O-O {[%clk 1:22:37]} 11... O-O {[%clk
1:31:01]} 12. Qc2 {[%clk 1:21:16]} 12... Qa5 {[%clk 1:28:31]} 13. Bd2 {[%clk
1:16:21]} 13... Rfb8 {[%clk 1:25:33]} 14. Nb5 {[%clk 1:15:37]} 14... Qb6 {[%clk
1:25:30]} 15. Bc3 {[%clk 1:15:03]} 15... Rb7 {[%clk 1:22:07]} 16. Nd2 {[%clk
1:14:03]} 16... Qa6 {[%clk 1:21:44]} 17. b3 {[%clk 1:12:28]} 17... Nb6 {[%clk
1:19:28]} 18. f4 {[%clk 1:09:23]} 18... Rc8 {[%clk 1:15:08]} 19. Qd3 {[%clk
1:03:26]} 19... Nfd7 {[%clk 1:10:07]} 20. Bxg7 {[%clk 1:01:53]} 20... Kxg7
{[%clk 1:10:18]} 21. Nc4 {[%clk 0:55:46]} 21... Nxc4 {[%clk 1:09:19]} 22. Qxc4
{[%clk 0:54:22]} 22... Nb6 {[%clk 1:08:36]} 23. Qc3+ {[%clk 0:54:07]} 23... Kg8
{[%clk 1:08:54]} 24. f5 {[%clk 0:50:50]} 24... c4 {[%clk 1:02:42]} 25. Qf3
{[%clk 0:46:24]} 25... Rf8 {[%clk 0:54:22]} 26. f6 {[%clk 0:32:43]} 26... cxb3
{[%clk 0:51:30]} 27. Qxb3 {[%clk 0:27:54]} 27... Re8 {[%clk 0:36:24]} 28. fxe7
{[%clk 0:26:33]} 28... Nd7 {[%clk 0:34:14]} 29. Qc3 {[%clk 0:22:25]} 29... Rxe7
{[%clk 0:31:01]} 30. Qc6 {[%clk 0:20:16]} 30... Rb6 {[%clk 0:28:43]} 31. Qc7
{[%clk 0:19:44]} 31... Rb7 {[%clk 0:20:08]} 32. Qd8+ {[%clk 0:19:01]} 32... Nf8
{[%clk 0:20:25]} 33. Qxd6 {[%clk 0:16:36]} 33... Qxd6 {[%clk 0:19:18]} 34. Nxd6
{[%clk 0:17:00]} 34... Rbd7 {[%clk 0:18:24]} 35. Nb5 {[%clk 0:16:17]} 35... Rxe4
{[%clk 0:18:42]} 36. a5 {[%clk 0:16:08]} 36... Re8 {[%clk 0:17:03]} 37. a6
{[%clk 0:16:07]} 37... Ra8 {[%clk 0:16:27]} 38. Rf6 {[%clk 0:15:40]} 38... Kg7
{[%clk 0:14:42]} 39. Rb6 {[%clk 0:15:38]} 39... Rdd8 {[%clk 0:14:04]} 40. Rb7
{[%clk 0:15:22]} 40... Nd7 {[%clk 0:12:26]} 41. Nc7 {[%clk 0:15:35]} 41... Rac8
{[%clk 0:10:07]} 42. Ra5 {[%clk 0:13:16]} 42... Rb8 {[%clk 0:07:43]} 43. Rxb8
{[%clk 0:13:22]} 43... Rxb8 {[%clk 0:08:00]} 44. a7 {[%clk 0:12:51]} 44... Rb1+
{[%clk 0:08:17]} 45. Kf2 {[%clk 0:13:16]} 45... Rb2+ {[%clk 0:07:39]} 46. Ke3
{[%clk 0:13:38]} 46... Nb6 {[%clk 0:07:52]} 47. Ra6 {[%clk 0:13:36]} 47... Rb3+
{[%clk 0:07:37]} 48. Kd4 {[%clk 0:13:36]} 48... Rb4+ {[%clk 0:07:41]} 49. Kc5
{[%clk 0:13:54]} 49... Rb2 {[%clk 0:07:13]} 50. Rxb6 {[%clk 0:14:13]} 50... Rc2+
{[%clk 0:07:31]} 51. Kd6 {[%clk 0:14:36]} 1-0

[Variant "Standard"]
[Site "Europe Echecs"]